lending/lending_fUSD_20250621
["ID","MTS","AMOUNT","RATE_DAILY","PERIOD"]
[366809369,1750467067644,-666.0,0.00025752,2]
[366809370,1750467067655,-300.0,0.00025752,10]
[366809371,1750467067665,-490.0,0.00025752,4]
[366809372,1750467067676,-1406.95,0.00025752,4]
[366809373,1750467067686,-151.0,0.00025753,7]
[366809374,1750467067696,-151.0,0.00025753,7]
[366809375,1750467067706,-254.117713,0.00025753,7]
[366809376,1750467067716,-151.0,0.00025753,7]
[366809377,1750467067726,-151.0,0.00025753,7]
[366809378,1750467067736,-151.0,0.00025753,7]
[366809379,1750467067746,-243.180948,0.00025753,7]
[366809380,1750467067756,-151.0,0.00025753,7]
[366809381,1750467067768,-206.24513,0.00025753,7]
[366809382,1750467067777,-206.24513,0.00025753,7]
[366809383,1750467067788,-151.0,0.00025753,7]
[366809384,1750467067798,-151.0,0.00025753,7]
[366809385,1750467067808,-490.0,0.00025753,4]
[366809386,1750467067818,-231.764256,0.00025753,7]
[366809387,1750467067829,-231.764256,0.00025753,7]
[366809388,1750467067839,-151.0,0.00025753,7]
[366809389,1750467067849,-190.652907,0.00025753,7]
[366809390,1750467067859,-466.108384,0.00025753,7]
[366809391,1750467067870,-466.108384,0.00025753,7]
[366809392,1750467067879,-227.006127,0.00025753,7]
[366809393,1750467067890,-227.006127,0.00025753,7]
[366809394,1750467067900,-155.886971,0.00025753,7]
[366809395,1750467067910,-155.886971,0.00025753,7]
[366809396,1750467067920,-339.62,0.00025753,4]
[366809397,1750467067930,-490.0,0.00025753,4]
[366809398,1750467067939,-490.0,0.00025753,4]
[366809399,1750467067949,-490.0,0.00025753,4]
[366809400,1750467067959,-490.0,0.00025753,4]
[366809401,1750467067969,-490.0,0.00025753,4]
[366809402,1750467067978,-208.756452,0.00025753,7]
[366809403,1750467067988,-490.0,0.00025753,4]
[366809404,1750467067998,-303.158107,0.00025753,7]
[366809405,1750467068007,-208.756452,0.00025753,7]
[366809406,1750467068018,-494.07987545,0.00025753,4]
[366809407,1750467068028,-151.0,0.00025753,7]
[366809408,1750467068038,-490.0,0.00025753,4]
[366809409,1750467068048,-490.0,0.00025753,4]
[366809410,1750467068058,-490.0,0.00025753,4]
[366809411,1750467068067,-490.0,0.00025753,4]
[366809412,1750467068077,-490.0,0.00025753,4]
[366809413,1750467068087,-490.0,0.00025753,4]
[366809414,1750467068096,-490.0,0.00025753,4]
[366809415,1750467068106,-490.0,0.00025753,4]
[366809416,1750467068116,-490.0,0.00025753,4]
[366809417,1750467068125,-490.0,0.00025753,4]
[366809418,1750467068135,-490.0,0.00025753,4]
[366809419,1750467068145,-490.0,0.00025753,4]
[366809420,1750467068155,-490.0,0.00025753,4]
[366809421,1750467068165,-499.03,0.00025753,4]
[366809422,1750467068175,-490.0,0.00025753,4]
[366809423,1750467068184,-490.0,0.00025753,4]
[366809424,1750467068194,-490.0,0.00025753,4]
[366809425,1750467068203,-490.0,0.00025753,4]
[366809426,1750467068212,-490.0,0.00025753,4]
[366809427,1750467068222,-490.0,0.00025753,4]
[366809428,1750467068232,-490.0,0.00025753,4]
[366809429,1750467068242,-249.486303,0.00025753,7]
[366809430,1750467068252,-490.0,0.00025753,4]
[366809431,1750467068261,-490.0,0.00025753,4]
[366809432,1750467068271,-438.30545834,0.00025753,4]
[366809433,1750467068281,-490.0,0.00025753,4]
[366809434,1750467068295,-490.0,0.00025753,4]
[366809435,1750467068305,-566.3,0.00025753,4]
[366809436,1750467068314,-490.0,0.00025753,4]
[366809437,1750467068324,-490.0,0.00025753,4]
[366809438,1750467068335,-490.0,0.00025753,4]
[366809439,1750467068344,-490.0,0.00025753,4]
[366809440,1750467068354,-490.0,0.00025753,4]
[366809441,1750467068364,-490.0,0.00025753,4]
[366809442,1750467068374,-216.801169,0.00025753,7]
[366809443,1750467068384,-490.0,0.00025753,4]
[366809444,1750467068394,-216.801161,0.00025753,7]
[366809445,1750467068404,-473.541414,0.00025753,7]
[366809446,1750467068414,-490.0,0.00025753,4]
[366809447,1750467068423,-473.541417,0.00025753,7]
[366809448,1750467068433,-490.0,0.00025753,4]
[366809449,1750467068443,-490.0,0.00025753,4]
[366809450,1750467068453,-490.0,0.00025753,4]
[366809451,1750467068463,-490.0,0.00025753,4]
[366809452,1750467068473,-490.0,0.00025753,4]
[366809453,1750467068483,-640.8,0.00025753,4]
[366809454,1750467068492,-477.14,0.00025753,4]
[366809455,1750467068502,-490.0,0.00025753,4]
[366809456,1750467068511,-156.640263,0.00025753,7]
[366809457,1750467068522,-490.0,0.00025753,4]
[366809458,1750467068533,-490.0,0.00025753,4]
[366809459,1750467068542,-156.64026628,0.00025753,7]
[366809460,1750467068552,-490.0,0.00025753,4]
[366809461,1750467068562,-490.0,0.00025753,4]
[366809462,1750467068572,-490.0,0.00025753,4]
[366809463,1750467068583,-490.0,0.00025753,4]
[366809464,1750467068592,-490.0,0.00025753,4]
[366809465,1750467068602,-991.7,0.00025753,4]
[366809466,1750467068612,-490.0,0.00025753,4]
[366809467,1750467068622,-490.0,0.00025753,4]
[366809468,1750467068708,-336.491164,0.00025753,7]
[366809469,1750467068718,-490.0,0.00025753,4]
[366809470,1750467068728,-207.66945881,0.00025753,4]
[366809471,1750467068738,-490.0,0.00025753,4]
[366809472,1750467068747,-490.0,0.00025753,4]
[366809473,1750467068757,-506.13,0.00025753,4]
[366809474,1750467068767,-450.09632638,0.00025753,4]
[366809475,1750467068777,-490.0,0.00025753,4]
[366809476,1750467068786,-490.0,0.00025753,4]
[366809477,1750467068796,-490.0,0.00025753,4]
[366809478,1750467068807,-490.0,0.00025753,4]
[366809479,1750467068819,-490.0,0.00025753,4]
[366809480,1750467068828,-490.0,0.00025753,4]
[366809481,1750467068838,-490.0,0.00025753,4]
[366809482,1750467068848,-261.60489362,0.00025753,4]
[366809483,1750467068859,-490.0,0.00025753,4]
[366809484,1750467068869,-490.0,0.00025753,4]
[366809485,1750467068878,-490.0,0.00025753,4]
[366809486,1750467068888,-490.0,0.00025753,4]
[366809487,1750467068898,-490.0,0.00025753,4]
[366809488,1750467068907,-490.0,0.00025753,4]
[366809489,1750467068917,-490.0,0.00025753,4]
[366809490,1750467068927,-490.0,0.00025753,4]
[366809491,1750467068936,-490.0,0.00025753,4]
[366809492,1750467068945,-569.52,0.00025753,4]
[366809493,1750467068955,-490.0,0.00025753,4]
[366809494,1750467068965,-490.0,0.00025753,4]
[366809495,1750467068974,-490.0,0.00025753,4]
[366809496,1750467068984,-490.0,0.00025753,4]
[366809497,1750467068993,-490.0,0.00025753,4]
[366809498,1750467069003,-490.0,0.00025753,4]
[366809499,1750467069013,-490.0,0.00025753,4]
[366809500,1750467069023,-828.07,0.00025753,4]
[366809501,1750467069032,-393.74,0.00025753,4]
[366809502,1750467069041,-490.0,0.00025753,4]
[366809503,1750467069052,-238.02,0.00025753,4]
[366809504,1750467069062,-490.0,0.00025753,4]
[366809505,1750467069071,-490.0,0.00025753,4]
[366809506,1750467069082,-490.0,0.00025753,4]
[366809507,1750467069091,-490.0,0.00025753,4]
[366809508,1750467069101,-490.0,0.00025753,4]
[366809509,1750467069110,-490.0,0.00025753,4]
[366809510,1750467069119,-490.0,0.00025753,4]
[366809511,1750467069129,-296.25393207,0.00025753,4]
[366809512,1750467069139,-490.0,0.00025753,4]
[366809513,1750467069148,-490.0,0.00025753,4]
[366809514,1750467069157,-490.0,0.00025753,4]
[366809515,1750467069167,-519.39,0.00025753,4]
[366809516,1750467069176,-490.0,0.00025753,4]
[366809517,1750467069186,-490.0,0.00025753,4]
[366809518,1750467069195,-490.0,0.00025753,4]
[366809519,1750467069205,-490.0,0.00025753,4]
[366809520,1750467069222,-490.0,0.00025753,4]
[366809521,1750467069232,-490.0,0.00025753,4]
[366809522,1750467069241,-490.0,0.00025753,4]
[366809523,1750467069251,-490.0,0.00025753,4]
[366809524,1750467069261,-490.0,0.00025753,4]
[366809525,1750467069270,-490.0,0.00025753,4]
[366809526,1750467069280,-529.54,0.00025753,4]
[366809527,1750467069290,-151.0,0.00025753,7]
[366809528,1750467069301,-490.0,0.00025753,4]
[366809529,1750467069311,-490.0,0.00025753,4]
[366809530,1750467069320,-490.0,0.00025753,4]
[366809531,1750467069330,-490.0,0.00025753,4]
[366809532,1750467069339,-627.92,0.00025753,4]
[366809533,1750467069349,-490.0,0.00025753,4]
[366809534,1750467069360,-490.0,0.00025753,4]
[366809535,1750467069370,-490.0,0.00025753,4]
[366809536,1750467069382,-490.0,0.00025753,4]
[366809537,1750467069392,-490.0,0.00025753,4]
[366809538,1750467069401,-490.0,0.00025753,4]
[366809539,1750467069410,-490.0,0.00025753,4]
[366809540,1750467069420,-490.0,0.00025753,4]
[366809541,1750467069430,-490.0,0.00025753,4]
[366809542,1750467069439,-490.0,0.00025753,4]
[366809543,1750467069449,-490.0,0.00025753,4]
[366809544,1750467069460,-490.0,0.00025753,4]
[366809545,1750467069469,-490.0,0.00025753,4]
[366809546,1750467069479,-490.0,0.00025753,4]
[366809547,1750467069488,-490.0,0.00025753,4]
[366809548,1750467069499,-490.0,0.00025753,4]
[366809549,1750467069508,-490.0,0.00025753,4]
[366809550,1750467069518,-638.18,0.00025753,4]
[366809551,1750467069527,-490.0,0.00025753,4]
[366809552,1750467069537,-367.987354,0.00025753,7]
[366809553,1750467069547,-490.0,0.00025753,4]
[366809554,1750467069557,-490.0,0.00025753,4]
[366809555,1750467069566,-367.987358,0.00025753,7]
[366809556,1750467069576,-490.0,0.00025753,4]
[366809557,1750467069585,-436.02,0.00025753,4]
[366809558,1750467069594,-518.34,0.00025753,4]
[366809559,1750467069603,-490.0,0.00025753,4]
[366809560,1750467069613,-490.0,0.00025753,4]
[366809561,1750467069622,-490.0,0.00025753,4]
[366809562,1750467069632,-490.0,0.00025753,4]
[366809563,1750467069642,-490.0,0.00025753,4]
[366809564,1750467069651,-490.0,0.00025753,4]
[366809565,1750467069661,-490.0,0.00025753,4]
[366809566,1750467069670,-490.0,0.00025753,4]
[366809567,1750467069679,-572.72,0.00025753,4]
[366809568,1750467069689,-490.0,0.00025753,4]
[366809569,1750467069699,-490.0,0.00025753,4]
[366809570,1750467069708,-151.0,0.00025753,7]
[366809571,1750467069718,-553.56405783,0.00025753,4]
[366809572,1750467069727,-490.0,0.00025753,4]
[366809573,1750467069738,-490.0,0.00025753,4]
[366809574,1750467069749,-310.04,0.00025753,4]
[366809575,1750467069759,-490.0,0.00025753,4]
[366809576,1750467069768,-490.0,0.00025753,4]
[366809577,1750467069778,-490.0,0.00025753,4]
[366809578,1750467069787,-490.0,0.00025753,4]
[366809579,1750467069797,-394.65,0.00025753,4]
[366809580,1750467069806,-490.0,0.00025753,4]
[366809581,1750467069816,-490.0,0.00025753,4]
[366809582,1750467069826,-250.0,0.00025753,4]
[366809583,1750467069836,-490.0,0.00025753,4]
[366809584,1750467069845,-490.0,0.00025753,4]
[366809585,1750467069854,-490.0,0.00025753,4]
[366809586,1750467069865,-151.0,0.00025753,7]
[366809587,1750467069874,-490.0,0.00025753,4]
[366809588,1750467069883,-490.0,0.00025753,4]
[366809589,1750467069892,-693.05,0.00025753,4]
[366809590,1750467069902,-679.07,0.00025753,4]
[366809591,1750467069912,-490.0,0.00025753,4]
[366809592,1750467069921,-654.389899,0.00025753,7]
[366809593,1750467069931,-490.0,0.00025753,4]
[366809594,1750467069940,-490.0,0.00025753,4]
[366809595,1750467069950,-600.5,0.00025753,4]
[366809596,1750467069959,-490.0,0.00025753,4]
[366809597,1750467069969,-845.06,0.00025753,4]
[366809598,1750467069978,-490.0,0.00025753,4]
[366809599,1750467069987,-175.786496,0.00025753,7]
[366809600,1750467069996,-654.389891,0.00025753,7]
[366809601,1750467070006,-501.35,0.00025753,4]
[366809602,1750467070015,-175.786506,0.00025753,7]
[366809603,1750467070025,-490.0,0.00025753,4]
[366809604,1750467070034,-490.0,0.00025753,4]
[366809605,1750467070044,-490.0,0.00025753,4]
[366809606,1750467070053,-2342.775154,0.00025753,7]
[366809607,1750467070063,-581.46,0.00025753,4]
[366809608,1750467070073,-490.0,0.00025753,4]
[366809609,1750467070083,-490.0,0.00025753,4]
[366809610,1750467070092,-1011.08,0.00025753,4]
[366809611,1750467070101,-490.0,0.00025753,4]
[366809612,1750467070111,-490.0,0.00025753,4]
[366809613,1750467070120,-2342.775155,0.00025753,7]
[366809614,1750467070130,-1710.27,0.00025753,4]
[366809615,1750467070139,-490.0,0.00025753,4]
[366809616,1750467070149,-490.0,0.00025753,4]
[366809617,1750467070159,-189.76,0.00025753,4]
[366809618,1750467070169,-490.0,0.00025753,4]
[366809619,1750467070178,-490.0,0.00025753,4]
[366809620,1750467070188,-490.0,0.00025753,4]
[366809621,1750467070198,-490.0,0.00025753,4]
[366809622,1750467070207,-490.0,0.00025753,4]
[366809623,1750467070217,-490.0,0.00025753,4]
[366809624,1750467070226,-490.0,0.00025753,4]
[366809625,1750467070236,-595.64,0.00025753,4]
[366809626,1750467070246,-675.57,0.00025753,4]
[366809627,1750467070255,-490.0,0.00025753,4]
[366809628,1750467070265,-573.37,0.00025753,4]
[366809629,1750467070275,-490.0,0.00025753,4]
[366809630,1750467070284,-1566.91,0.00025753,4]
[366809631,1750467070296,-490.0,0.00025753,4]
[366809632,1750467070306,-490.0,0.00025753,4]
[366809633,1750467070315,-490.0,0.00025753,4]
[366809634,1750467070325,-490.0,0.00025753,4]
[366809635,1750467070335,-490.0,0.00025753,4]
[366809636,1750467070344,-298.25346033,0.00025753,4]
[366809637,1750467070354,-573.81,0.00025753,4]
[366809638,1750467070363,-490.0,0.00025753,4]
[366809639,1750467070373,-3259.78,0.00025753,4]
[366809640,1750467070382,-490.0,0.00025753,4]
[366809641,1750467070392,-490.0,0.00025753,4]
[366809642,1750467070401,-490.0,0.00025753,4]
[366809643,1750467070410,-490.0,0.00025753,4]
[366809644,1750467070419,-633.39284581,0.00025753,4]
[366809645,1750467070429,-163.52118026,0.00025753,4]
[366809646,1750467070439,-648.85,0.00025753,4]
[366809647,1750467070448,-1017.95,0.00025753,4]
[366809648,1750467070459,-490.0,0.00025753,4]
[366809649,1750467070469,-490.0,0.00025753,4]
[366809650,1750467070478,-490.0,0.00025753,4]
[366809651,1750467070488,-490.0,0.00025753,4]
[366809652,1750467070498,-1010.41,0.00025753,4]
[366809653,1750467070507,-838.54,0.00025753,4]
[366809654,1750467070517,-561.12,0.00025753,4]
[366809655,1750467070527,-490.0,0.00025753,4]
[366809656,1750467070536,-490.0,0.00025753,4]
[366809657,1750467070546,-490.0,0.00025753,4]
[366809658,1750467070556,-490.0,0.00025753,4]
[366809659,1750467070565,-490.0,0.00025753,4]
[366809660,1750467070575,-490.0,0.00025753,4]
[366809661,1750467070585,-490.0,0.00025753,4]
[366809662,1750467070595,-490.0,0.00025753,4]
[366809663,1750467070605,-490.0,0.00025753,4]
[366809664,1750467070615,-490.0,0.00025753,4]
[366809665,1750467070626,-7664.92,0.00025753,4]
[366809666,1750467070637,-490.0,0.00025753,4]
[366809667,1750467070646,-535.72,0.00025753,4]
[366809668,1750467070656,-490.0,0.00025753,4]
[366809669,1750467070666,-643.42,0.00025753,4]
[366809670,1750467070676,-490.0,0.00025753,4]
[366809671,1750467070686,-490.0,0.00025753,4]
[366809672,1750467070695,-490.0,0.00025753,4]
[366809673,1750467070705,-490.0,0.00025753,4]
[366809674,1750467070715,-740.37,0.00025753,4]
[366809675,1750467070725,-666.48,0.00025753,4]
[366809676,1750467070735,-1402.81,0.00025753,4]
[366809677,1750467070744,-1928.49,0.00025753,4]
[366809678,1750467070754,-490.0,0.00025753,4]
[366809679,1750467070764,-490.0,0.00025753,4]
[366809680,1750467070774,-490.0,0.00025753,4]
[366809681,1750467070783,-490.0,0.00025753,4]
[366809682,1750467070793,-875.93,0.00025753,4]
[366809683,1750467070803,-490.0,0.00025753,4]
[366809684,1750467070813,-490.0,0.00025753,4]
[366809685,1750467070822,-575.61,0.00025753,4]
[366809686,1750467070832,-2680.72,0.00025753,4]
[366809687,1750467070842,-490.0,0.00025753,4]
[366809688,1750467070852,-1148.65,0.00025753,4]
[366809689,1750467070862,-499.47,0.00025753,4]
[366809690,1750467070872,-217.9,0.00025753,4]
[366809691,1750467070882,-490.0,0.00025753,4]
[366809692,1750467070892,-585.26,0.00025753,4]
[366809693,1750467070902,-540.31,0.00025753,4]
[366809694,1750467070911,-506.05,0.00025753,4]
[366809695,1750467070921,-490.0,0.00025753,4]
[366809696,1750467070931,-755.96,0.00025753,4]
[366809697,1750467070941,-490.0,0.00025753,4]
[366809698,1750467070950,-5788.94,0.00025753,4]
[366809699,1750467070960,-490.0,0.00025753,4]
[366809700,1750467070970,-979.05,0.00025753,4]
[366809701,1750467070980,-1714.67,0.00025753,4]
[366809702,1750467070989,-1056.73,0.00025753,4]
[366809703,1750467070999,-703.48,0.00025753,4]
[366809704,1750467071010,-490.0,0.00025753,4]
[366809705,1750467071020,-252.58928188,0.00025753,4]
[366809706,1750467071030,-490.0,0.00025753,4]
[366809707,1750467071040,-490.0,0.00025753,4]
[366809708,1750467071049,-490.0,0.00025753,4]
[366809709,1750467071060,-490.0,0.00025753,4]
[366809710,1750467071070,-1389.72,0.00025753,4]
[366809711,1750467071080,-490.0,0.00025753,4]
[366809712,1750467071090,-490.0,0.00025753,4]
[366809713,1750467071100,-490.0,0.00025753,4]
[366809714,1750467071110,-490.0,0.00025753,4]
[366809715,1750467071120,-463.04,0.00025753,4]
[366809716,1750467071130,-490.0,0.00025753,4]
[366809717,1750467071140,-490.0,0.00025753,4]
[366809718,1750467071149,-490.0,0.00025753,4]
[366809719,1750467071160,-778.17,0.00025753,4]
[366809720,1750467071170,-1748.79,0.00025753,4]
[366809721,1750467071181,-490.0,0.00025753,4]
[366809722,1750467071191,-490.0,0.00025753,4]
[366809723,1750467071201,-567.41,0.00025753,4]
[366809724,1750467071211,-490.0,0.00025753,4]
[366809725,1750467071221,-490.0,0.00025753,4]
[366809726,1750467071230,-1625.6,0.00025753,4]
[366809727,1750467071240,-490.0,0.00025753,4]
[366809728,1750467071250,-490.0,0.00025753,4]
[366809729,1750467071260,-486.33746659,0.00025753,4]
[366809730,1750467071271,-490.0,0.00025753,4]
[366809731,1750467071281,-490.0,0.00025753,4]
[366809732,1750467071294,-490.0,0.00025753,4]
[366809733,1750467071304,-875.48,0.00025753,4]
[366809734,1750467071314,-513.0,0.00025753,4]
[366809735,1750467071324,-2895.02,0.00025753,4]
[366809736,1750467071334,-490.0,0.00025753,4]
[366809737,1750467071343,-490.0,0.00025753,4]
[366809738,1750467071353,-490.0,0.00025753,4]
[366809739,1750467071363,-417.71,0.00025753,4]
[366809740,1750467071373,-1070.55,0.00025753,4]
[366809741,1750467071383,-490.0,0.00025753,4]
[366809742,1750467071393,-189.23747704,0.00025753,4]
[366809743,1750467071404,-490.0,0.00025753,4]
[366809744,1750467071414,-490.0,0.00025753,4]
[366809745,1750467071424,-490.0,0.00025753,4]
[366809746,1750467071435,-1435.61,0.00025753,4]
[366809747,1750467071445,-490.0,0.00025753,4]
[366809748,1750467071455,-874.16,0.00025753,4]
[366809749,1750467071466,-490.0,0.00025753,4]
[366809750,1750467071476,-490.0,0.00025753,4]
[366809751,1750467071486,-630.58,0.00025753,4]
[366809752,1750467071496,-490.0,0.00025753,4]
[366809753,1750467071506,-490.0,0.00025753,4]
[366809754,1750467071516,-490.0,0.00025753,4]
[366809755,1750467071526,-2562.11,0.00025753,2]
[366809756,1750467071536,-490.0,0.00025753,4]
[366809757,1750467071546,-490.0,0.00025753,4]
[366809758,1750467071556,-490.0,0.00025753,4]
[366809759,1750467071566,-490.0,0.00025753,4]
[366809760,1750467071576,-1288.18,0.00025753,4]
[366809761,1750467071586,-490.0,0.00025753,4]
[366809762,1750467071595,-490.0,0.00025753,4]
[366809763,1750467071605,-490.0,0.00025753,4]
[366809764,1750467071615,-490.0,0.00025753,4]
[366809765,1750467071624,-490.0,0.00025753,4]
[366809766,1750467071635,-817.53,0.00025753,4]
[366809767,1750467071644,-490.0,0.00025753,4]
[366809768,1750467071654,-490.0,0.00025753,4]
[366809769,1750467071665,-490.0,0.00025753,4]
[366809770,1750467071675,-490.0,0.00025753,4]
[366809771,1750467071686,-490.0,0.00025753,4]
[366809772,1750467071696,-1310.38,0.00025753,2]
[366809773,1750467071706,-490.0,0.00025753,4]
[366809774,1750467071716,-490.0,0.00025753,4]
[366809775,1750467071726,-490.0,0.00025753,4]
[366809776,1750467071737,-1069.86,0.00025753,4]
[366809777,1750467071747,-490.0,0.00025753,4]
[366809778,1750467071758,-490.0,0.00025753,4]
[366809779,1750467071768,-490.0,0.00025753,4]
[366809780,1750467071779,-490.0,0.00025753,4]
[366809781,1750467071789,-490.0,0.00025753,4]
[366809782,1750467071799,-490.0,0.00025753,4]
[366809783,1750467071809,-490.0,0.00025753,4]
[366809784,1750467071819,-614.90860678,0.00025753,4]
[366809785,1750467071830,-5920.244102,0.00025753,4]
[366809786,1750467071840,-490.0,0.00025753,4]
[366809787,1750467071850,-490.0,0.00025753,4]
[366809788,1750467071859,-490.0,0.00025753,4]
[366809789,1750467071870,-490.0,0.00025753,4]
[366809790,1750467071879,-525.89,0.00025753,4]
[366809791,1750467071890,-245.12550027,0.00025753,2]
[366809792,1750467071900,-259.85,0.00025753,4]
[366809793,1750467071910,-490.0,0.00025753,4]
[366809794,1750467071919,-622.86,0.00025753,4]
[366809795,1750467071929,-800.28,0.00025753,4]
[366809796,1750467071938,-490.0,0.00025753,4]
[366809797,1750467071948,-490.0,0.00025753,4]
[366809798,1750467071958,-196.40029277,0.00025768,2]
[366809799,1750467071968,-2110.0,0.0002578,2]
[366809800,1750467071978,-208.0,0.00025784,2]
[366809801,1750467071988,-3322.01261887,0.00025786,2]
[366809802,1750467071998,-186.2,0.00025789,2]
[366809803,1750467072008,-250.0,0.00025789,2]
[366809804,1750467072017,-150.31,0.00025789,2]
[366809805,1750467072026,-150.0,0.00025789,2]
[366809806,1750467072036,-150.47,0.00025789,2]
[366809807,1750467072046,-170.0,0.00025789,2]
[366809808,1750467072055,-150.502,0.00025789,2]
[366809809,1750467072065,-286.896,0.00025789,2]
[366809810,1750467072077,-150.0,0.00025789,2]
[366809811,1750467072087,-150.52,0.00025789,2]
[366809812,1750467072098,-7012.83633181,0.00025802,2]
[366809813,1750467072109,-187.3,0.00025843,2]
[366809814,1750467072119,-1221.0,0.00025851,2]
[366809815,1750467072131,-151.0,0.00025865,7]
[366809816,1750467072142,-151.0,0.00025865,7]
[366809817,1750467072151,-151.0,0.00025865,7]
[366809818,1750467072162,-151.0,0.00025865,7]
[366809819,1750467072172,-151.0,0.00025865,7]
[366809820,1750467072183,-169.551605,0.00025865,7]
[366809821,1750467072194,-169.551605,0.00025865,7]
[366809822,1750467072204,-660.470074,0.00025865,7]
[366809823,1750467072214,-326.462005,0.00025865,7]
[366809824,1750467072224,-326.462005,0.00025865,7]
[366809825,1750467072237,-151.0,0.00025865,7]
[366809826,1750467072247,-151.0,0.00025865,7]
[366809827,1750467072258,-1680.0,0.00025889,2]
[366809828,1750467072268,-7200.0,0.000259,9]
[366809829,1750467072278,-2500.0,0.00025907,2]
[366809830,1750467072289,-1452.68655747,0.00025969,14]
[366809831,1750467072300,-3322.01261887,0.0002599,2]
[366809832,1750467072310,-2000.0,0.00026,2]
[366809833,1750467072320,-2000.0,0.00026,2]
[366809834,1750467072331,-509.0,0.00026,10]
[366809835,1750467072341,-2000.0,0.00026,2]
[366809836,1750467072351,-1674.38,0.00026,2]
[366809837,1750467072362,-1674.38,0.00026,2]
[366809838,1750467072373,-1674.38,0.00026,2]
[366809839,1750467072383,-2000.0,0.00026,2]
[366809840,1750467072393,-2000.0,0.00026,2]
[366809841,1750467072403,-4522.89,0.00026,2]
[366809842,1750467072413,-4522.89,0.00026,2]
[366809843,1750467072423,-4522.89,0.00026,2]
[366809844,1750467072434,-360.0,0.00026,2]
[366809845,1750467072444,-227.006127,0.00026,7]
[366809846,1750467072455,-227.006127,0.00026,7]
[366809847,1750467072465,-200.0,0.00026001,2]
[366809848,1750467072476,-834.11677829,0.00026007,2]
[366809849,1750467072486,-227.006127,0.00026009,7]
[366809850,1750467072497,-227.006127,0.00026009,7]
[366809851,1750467072507,-185.856239,0.00026009,7]
[366809852,1750467072516,-152103.6283616,0.00026009,2]
[366809853,1750467072527,-5763.1986288,0.00026009,2]
[366809854,1750467072538,-300.0,0.00026017,2]
[366809855,1750467072548,-300.0,0.00026026,10]
[366809856,1750467072559,-666.0,0.00026026,2]
[366809857,1750467072568,-300.0,0.00026026,10]
[366809858,1750467072578,-490.0,0.00026026,4]
[366809859,1750467072589,-1406.95,0.00026026,4]
[366809860,1750467072600,-150.0,0.00026026,2]
[366809861,1750467072802,-7012.83633181,0.00026027,2]
[366809862,1750467072812,-151.0,0.00026027,7]
[366809863,1750467072822,-151.0,0.00026027,7]
[366809864,1750467072832,-151.0,0.00026027,7]
[366809865,1750467072842,-151.0,0.00026027,7]
[366809866,1750467072851,-151.0,0.00026027,7]
[366809867,1750467072860,-151.0,0.00026027,7]
[366809868,1750467072871,-151.0,0.00026027,7]